Cogmind - Beta 13 @@@ ROGUE MODE // 2024.04.27 @ 13:35:44 Player: Gabe+Kate4EVR Result: Core destroyed Performance ------------- Evolutions (5) 2500 Regions Visited (11) 2200 Robots Destroyed (134) 670 Value Destroyed (4598) 4598 Prototype IDs (12) 240 Alien Tech Used (0) 0 Bonus (1047) 1047 TOTAL SCORE: 11255 Bonus ------- High Alert Combat Kills 115 Follower Combat Kills 178 Entered DSFs 500 Met Data Miner 300 Friendly Fire -46 Cogmind --------- Core Integrity 0/1000 Matter 8/300 Energy 100/100 System Corruption 1% Temperature Cool (0) Movement Core (50) Location -5/Factory Parts ------- > --- POWER (2) -------- (None) > --- PROPULSION (7) --- (None) > --- UTILITY (6) ------ (None) > --- WEAPON (2) ------- (None) > --- INVENTORY (5) ---- Core Analyzer Long-range Missile Launcher Remote Datajack Plasma Cutter Katana Peak State ------------ > --- POWER ------------ Neutrino Core > --- PROPULSION ------- Armored Treads Advanced Treads Advanced Treads Advanced Treads Advanced Treads Medium Treads > --- UTILITY ---------- Large Storage Unit Core Analyzer Medium Reactive Plating Makeshift System Shield > --- WEAPON ----------- Flak Cannon Makeshift Sword > --- INVENTORY -------- Armored Treads Medium Treads Weapon Cycler Hardened Medium Armor Plating Corruption Screen Improved Field Recycling Unit Minigun Enhanced Autogun Enhanced Autogun Flak Gun Flak Gun Improved Light Cannon Flak Cannon Remote Datajack Plasma Cutter [Rating: 50] Favorites ----------- Power Light Angular Momentum Engine Engine Light Angular Momentum Engine Power Core Neutrino Core Reactor Antimatter Reactor Propulsion Advanced Treads Treads Advanced Treads Leg Aluminum Leg Wheel Wheel Hover Unit Gravmag System Utility Large Storage Unit Device Seismic Detector Storage Large Storage Unit Processor Core Analyzer Hackware Makeshift System Shield Protection Hardened Medium Armor Plating Weapon Enhanced Autogun Energy Gun Small Laser Energy Cannon EM Pulse Cannon Ballistic Gun Enhanced Autogun Ballistic Cannon Flak Cannon Special Weapon Plasma Cutter Slashing Weapon Makeshift Sword Build | -11 -10 -9 -8 -7 -7 -7 -7 -6 -6 -6 -5 ------- Run | Yrd Mat Mat Mat Fac Low Low Dat Pro Fac DSF Fac Slots Evolved 10 | . . 2 2 2 . . . . 2 . 2 Power 1 | . . . . . . . . . . . 1 Propulsion 5 | . . 2 . 2 . . . . 1 . . Utility 4 | . . . 2 . . . . . 1 . 1 Weapon . | . . . . . . . . . . . . Parts Attached 162 | 7 13 35 48 11 6 12 2 12 1 13 2 Power 17 | 1 1 7 2 1 1 2 . 2 . . . Engine 12 | 1 1 5 2 1 . 1 . 1 . . . Core 4 | . . 2 . . 1 1 . . . . . Reactor 1 | . . . . . . . . 1 . . . Propulsion 68 | 2 7 16 20 3 5 3 . 6 . 5 1 Treads 32 | . . . 11 3 5 3 . 6 . 4 . Leg 20 | 2 3 13 1 . . . . . . 1 . Wheel 11 | . 4 3 4 . . . . . . . . Hover 5 | . . . 4 . . . . . . . 1 Flight . | . . . . . . . . . . . . Utility 29 | 2 3 3 9 5 . 3 2 . 1 1 . Device 5 | 1 1 . 2 . . . 1 . . . . Storage 4 | 1 1 2 . . . . . . . . . Processor 6 | . 1 1 3 1 . . . . . . . Hackware 2 | . . . . . . 1 . . 1 . . Protection 12 | . . . 4 4 . 2 1 . . 1 . Artifact . | . . . . . . . . . . . . Weapon 48 | 2 2 9 17 2 . 4 . 4 . 7 1 Energy Gun 9 | . 1 5 3 . . . . . . . . Energy Cannon 2 | . . . 2 . . . . . . . . Ballistic Gun 19 | 2 1 2 6 1 . . . 4 . 3 . Ballistic Cannon 13 | . . 2 6 1 . 1 . . . 3 . Launcher . | . . . . . . . . . . . . Special Weapon 1 | . . . . . . 1 . . . . . Impact Weapon . | . . . . . . . . . . . . Slashing Weapon 4 | . . . . . . 2 . . . 1 1 Piercing Weapon . | . . . . . . . . . . . . Special Melee Weapon . | . . . . . . . . . . . . Unidentified Prototypes 2 | . . . 2 . . . . . . . . Corrupted Parts 2 | . . . 1 . . . 1 . . . . System Corruption 16 | . . . 8 . . . 8 . . . . Parts Lost 40 | . 1 5 6 . 2 4 . 8 . 14 . Power 7 | . 1 2 . . 1 1 . 1 . 1 . Propulsion 17 | . . 2 4 . 1 1 . 6 . 3 . Utility 6 | . . . 1 . . 1 . . . 4 . Weapon 10 | . . 1 1 . . 1 . 1 . 6 . Highest Loss Streak 6 | . 1 2 3 . 2 2 . 2 . 6 . To Critical Strikes 2 | . . . . . . 1 . 1 . . . Average Slot Usage (%) 86 | . 98 95 93 99 99 97 100 83 72 43 1 Engine 4 | . 13 8 9 6 . 1 . . . . . Core 1 | . . 1 . . 6 5 7 . . . . Treads 28 | . . . 21 45 45 45 46 32 20 6 . Leg 4 | . 9 35 5 . . . . . . . . Wheel 1 | . 17 5 2 . . . . . . . . Storage 7 | . 14 11 9 7 7 7 7 7 6 4 . Processor 10 | . 3 10 19 14 7 7 7 7 6 6 . Hackware 1 | . . . . . . 3 7 7 12 9 . Protection 6 | . . . 4 7 15 10 7 7 6 . . Energy Gun 1 | . 2 14 2 . . . . . . . . Ballistic Gun 7 | . 25 3 10 7 7 1 . 12 13 3 . Ballistic Cannon 4 | . . 3 4 6 7 8 7 1 . 5 . Naked Turns 614 | . . . . . . . . . . 2 612 Heaviest Build 68 | 12 28 49 48 48 48 62 62 63 63 68 2 Greatest Support 136 | 20 32 42 83 124 130 136 136 136 70 81 9 Greatest Overweight (x) 16 | . 2 4 4 . . . . 3 . 16 . Average Overweight (x) . | . . . . . . . . . . 1 . Largest Inventory Capacity 20 | 8 15 20 15 15 15 15 15 15 15 15 5 Average Capacity 14 | 7 11 17 15 15 15 15 15 15 15 12 5 Most Carried 20 | 6 13 20 15 15 15 15 15 15 15 15 5 Average Carried 13 | 2 8 15 14 14 13 14 15 14 15 12 3 Final Capacity 15 | 8 15 15 15 15 15 15 15 15 15 5 5 Final Carried 15 | 6 13 15 15 15 13 15 15 15 15 3 5 Class Distribution -------------------- 87% | Mutant 10% | Scavenger-Mutant Dominant Class ---------------- Mutant | -10/Materials Scavenger-Mutant | -9/Materials Mutant | -8/Materials Mutant | -7/Factory Mutant | -7/Lower Caves Mutant | -7/Lower Caves Mutant | -7/Data Miner Mutant | -6/Proximity Caves Hacker-Mutant | -6/Factory Hacker-Mutant | -6/DSF Mutant | -5/Factory Resources | -11 -10 -9 -8 -7 -7 -7 -7 -6 -6 -6 -5 ----------- Run | Yrd Mat Mat Mat Fac Low Low Dat Pro Fac DSF Fac Matter Collected 4043 | 232 241 582 1095 564 164 387 . 716 . 62 . Remotely . | . . . . . . . . . . . . Salvage Created 5231 | 71 336 850 1359 646 191 920 . 635 . 223 . Parts 256 | 4 24 45 69 29 8 35 . 34 . 8 . Haulers Intercepted 6 | . . . 5 1 . . . . . . . Recyclers Shooed 10 | . 3 1 4 2 . . . . . . . Parts Field Recycled . | . . . . . . . . . . . . Retrieved Matter . | . . . . . . . . . . . . Parts Self-Destructed 70 | . . . . . 8 18 . 44 . . . Prevented . | . . . . . . . . . . . . Kills | -11 -10 -9 -8 -7 -7 -7 -7 -6 -6 -6 -5 ------- Run | Yrd Mat Mat Mat Fac Low Low Dat Pro Fac DSF Fac Combat Hostiles Destroyed 109 | . 8 21 20 17 7 11 . 20 . 5 . Melee 15 | . . . 2 5 3 4 . 1 . . . Guns 54 | . 8 12 10 7 2 . . 12 . 3 . Cannons 38 | . . 7 8 5 2 7 . 7 . 2 . AOE 2 | . . 2 . . . . . . . . . Classes Destroyed 16 | 2 5 3 2 1 . . . 2 . 1 . Worker 3 | . 1 . 2 . . . . . . . . Builder 2 | . 1 . 1 . . . . . . . . Tunneler 1 | 1 . . . . . . . . . . . Hauler 6 | . . . 5 1 . . . . . . . Recycler 9 | 1 1 1 3 3 . . . . . . . Mechanic 2 | . . 1 1 . . . . . . . . Drone 1 | . . . . . . . . 1 . . . Watcher 2 | . 1 . 1 . . . . . . . . Swarmer 26 | . 5 3 . 2 3 3 . 10 . . . Grunt 55 | . 3 14 15 8 2 5 . 4 . 4 . Brawler 4 | . . 1 . . 1 1 . 1 . . . Duelist 2 | . . . . . . . . 2 . . . Sentry 10 | . . 3 4 2 . 1 . . . . . Hunter 5 | . . . 1 . 1 1 . 2 . . . Programmer 5 | . . . . 5 . . . . . . . Heavy 1 | . . . . . . . . . . 1 . Best Kill Streak 7 | 2 7 4 3 4 3 7 . 4 . 3 . Combat Bots Only 7 | . 6 4 3 4 3 7 . 4 . 3 . Max Kills in Single Turn 2 | 1 1 2 2 1 2 2 . 1 . 1 . Gunslinging 1 | . . 1 . . . . . . . . . Exploded 2 | . . 2 . . . . . . . . . Melee 1 | . . . 1 1 1 1 . 1 . . . Uniques/NPCs Destroyed . | . . . . . . . . . . . . Combat | -11 -10 -9 -8 -7 -7 -7 -7 -6 -6 -6 -5 -------- Run | Yrd Mat Mat Mat Fac Low Low Dat Pro Fac DSF Fac Hostile Shots Fired 889 | . 41 136 139 144 32 64 . 124 . 169 40 Missed 268 | . 12 36 35 50 7 18 . 34 . 60 16 Damage Taken 10208 | . 303 1189 1666 1302 352 545 . 1258 . 2571 1022 Core 2554 | . 60 263 207 41 13 16 . 106 . 839 1009 Absorbed by Shields . | . . . . . . . . . . . . Redirected to Shielding 226 | . . . 100 . . 126 . . . . . Ignored by Resistances 393 | . . . . . . . . 309 . 84 . Regen/Repaired (Parts) 232 | . . . . 232 . . . . . . . Core Remaining (%) 57 | 100 76 34 62 . . . . 74 . 1 . Volleys Fired 350 | 4 31 67 88 41 10 21 . 59 . 29 . Largest 2 | 2 2 2 2 2 2 2 . 2 . 2 . Hottest 126 | 40 60 95 126 69 69 88 . 69 . 97 . Shots Fired 672 | 8 62 125 173 83 20 32 . 114 . 55 . Gun 433 | 8 62 101 95 48 10 . . 87 . 22 . Cannon 228 | . . 24 78 35 10 21 . 27 . 33 . Launcher . | . . . . . . . . . . . . Special 11 | . . . . . . 11 . . . . . Kinetic 546 | 8 60 41 144 83 20 21 . 114 . 55 . Thermal 105 | . . 74 20 . . 11 . . . . . Explosive . | . . . . . . . . . . . . Electromagnetic 21 | . 2 10 9 . . . . . . . . Robot Hit Streak 33 | 8 12 19 33 10 7 10 . 9 . 9 . Robot Miss Streak 13 | . 4 4 8 9 7 8 . 13 . 6 . Penetration Max 1 | . . . . . . . . 1 . . . Secondary Targets 6 | . 1 2 . 1 . . . 2 . . . Max Gunslinging Chain 1 | . 1 1 . 1 . . . 1 . . . Shots Hit Robots 494 | 8 36 90 130 58 13 47 . 76 . 35 1 Core Hits 364 | 4 21 38 75 54 14 42 . 70 . 46 . Critical Kills 1 | . . . 1 . . . . . . . . Critical Parts Destroyed . | . . . . . . . . . . . . Critical Strikes 10 | . . 2 4 . . 2 . . . 2 . Burn 3 | . . 1 2 . . . . . . . . Meltdown 1 | . . . 1 . . . . . . . . Blast 3 | . . . 1 . . . . . . 2 . Corrupt 1 | . . 1 . . . . . . . . . Sever 2 | . . . . . . 2 . . . . . Melee Attacks 26 | . . . . . . 23 . . . 1 2 Impact . | . . . . . . . . . . . . Slashing 26 | . . . . . . 23 . . . 1 2 Piercing . | . . . . . . . . . . . . Sneak Attacks 1 | . . . . . . . . . . . 1 Combat Hostiles 1 | . . . . . . . . . . . 1 Follow-up Attacks . | . . . . . . . . . . . . Damage Inflicted 10357 | 85 477 1418 2327 1270 280 1924 . 1302 . 1168 106 Guns 4578 | 85 477 864 1083 563 110 . . 990 . 406 . Cannons 3803 | . . 449 1217 611 124 345 . 304 . 753 . Explosions 99 | . . 99 . . . . . . . . . Melee 1467 | . . . . . . 1421 . . . . 46 Ramming 301 | . . 6 27 96 46 49 . 8 . 9 60 Kinetic 7240 | 85 452 607 1890 1174 234 345 . 1294 . 1159 . Thermal 1042 | . . 702 231 . . 109 . . . . . Explosive . | . . . . . . . . . . . . Electromagnetic 307 | . 25 103 179 . . . . . . . . Impact . | . . . . . . . . . . . . Slashing 1467 | . . . . . . 1421 . . . . 46 Piercing . | . . . . . . . . . . . . Highest Corruption 23 | . . . 8 7 7 15 23 23 . 3 1 Average Corruption 10 | . . . 8 3 7 12 15 23 . 3 1 Corruption Purged . | . . . . . . . . . . . . Corruption Blocked . | . . . . . . . . . . . . Effects 220 | . . . 43 21 17 76 6 50 . . 7 Message Errors 45 | . . . 3 3 6 25 1 6 . . 1 Matter Fused 55 | . . . 12 6 5 19 1 10 . . 2 Heat Flow Errors 24 | . . . 5 2 2 9 . 5 . . 1 Energy Discharges 27 | . . . 7 4 2 6 2 5 . . 1 Parts Rejected 5 | . . . 2 1 . . . 2 . . . Data Loss (minor) 27 | . . . 4 3 2 10 1 6 . . 1 Data Loss (major) 15 | . . . 4 1 . 3 1 5 . . 1 Misfires 11 | . . . 2 1 . 4 . 4 . . . Alerts 1 | . . . . . . . . 1 . . . Misdirections 1 | . . . . . . . . 1 . . . Weapon Failures 9 | . . . 4 . . . . 5 . . . Overload Shots . | . . . . . . . . . . . . Overflow Damage 487 | . . 4 . . . 483 . . . . . Projectiles . | . . . . . . . . . . . . Explosions 4 | . . 4 . . . . . . . . . Melee 483 | . . . . . . 483 . . . . . Knockbacks 77 | . . 1 29 14 2 14 . 11 . 6 . Impact 1 | . . . . . . . . . . 1 . Kinetic 68 | . . 1 24 12 2 13 . 11 . 5 . Secondary 8 | . . . 5 2 . 1 . . . . . Self-Inflicted Damage 84 | . . 39 . . . . . . . 4 41 Shots 1 | . . 1 . . . . . . . . . Rammed 60 | . . . 9 26 6 7 . 2 . 3 7 Targets Rammed 79 | . . 1 12 33 9 11 . 3 . 3 7 Kicked 1 | . . 1 . . . . . . . . . Crushed 18 | . . . 3 7 3 4 . 1 . . . Highest Temperature 351 | . 6 209 351 257 223 290 . 251 . . 183 Average Temperature 66 | . 2 58 77 41 61 95 . 53 . . 87 Received Heat Transfer 2952 | . 99 528 846 276 108 162 . 129 . 660 144 Effects 2 | . . . 1 1 . . . . . . . Energy Bleed 1 | . . . . 1 . . . . . . . Damage (minor) 1 | . . . 1 . . . . . . . . Siege Activations . | . . . . . . . . . . . . Robots Corrupted . | . . . . . . . . . . . . Combat Hostiles . | . . . . . . . . . . . . Parts Fried 1 | . . . 1 . . . . . . . . Impact Corruptions 1 | . . . . . . 1 . . . . . Robots Melted 1 | . . . 1 . . . . . . . . Combat Hostiles . | . . . . . . . . . . . . Parts Melted 6 | . . 4 1 . . 1 . . . . . Heat Transferred 2593 | . . 1594 629 . . 370 . . . . . Parts Sabotaged . | . . . . . . . . . . . . Parts Stolen 1 | . . . . . 1 . . . . . . Parts Stripped . | . . . . . . . . . . . . Power Chain Reactions 1 | . . 1 . . . . . . . . . Alert | -11 -10 -9 -8 -7 -7 -7 -7 -6 -6 -6 -5 ------- Run | Yrd Mat Mat Mat Fac Low Low Dat Pro Fac DSF Fac Peak Influence 982 | 10 340 326 237 241 . . . . 982 747 363 Initial 982 | . 6 59 40 56 . . . . 982 690 358 Average 155 | 1 166 174 103 70 . . . . 982 710 260 Maximum Alert Level 3 | . 1 1 1 1 . . . . 3 3 1 Low Security (%) 77 | 100 53 65 97 93 . . . . . . 48 Level 1 18 | . 46 34 2 6 . . . . . . 51 Level 2 1 | . . . . . . . . . . 39 . Level 3 3 | . . . . . . . . . 100 60 . Level 4 . | . . . . . . . . . . . . Level 5 . | . . . . . . . . . . . . High Security . | . . . . . . . . . . . . Max Security . | . . . . . . . . . . . . Squads Dispatched 20 | . 2 4 1 7 . . . 1 . 2 3 Investigation 7 | . . 3 1 1 . . . . . . 2 Extermination 4 | . . . . 3 . . . . . . 1 Reinforcement 5 | . 2 1 . . . . . . . 2 . Assault 1 | . . . . . . . . 1 . . . Garrison 3 | . . . . 3 . . . . . . . Intercept . | . . . . . . . . . . . . Searches Triggered . | . . . . . . . . . . . . Data Miner Redirects 1 | . . . . . . . . . . . 1 Construction Impeded . | . . . . . . . . . . . . Haulers Reinforced . | . . . . . . . . . . . . Active Scanning Responses . | . . . . . . . . . . . . Cargo Convoy Interrupts . | . . . . . . . . . . . . Stealth | -11 -10 -9 -8 -7 -7 -7 -7 -6 -6 -6 -5 --------- Run | Yrd Mat Mat Mat Fac Low Low Dat Pro Fac DSF Fac Distress Signals 7 | . . 4 1 1 . . . 1 . . . Communications Jammed . | . . . . . . . . . . . . Distress Signals . | . . . . . . . . . . . . Times Spotted 193 | . 19 30 32 29 8 11 . 31 . 18 15 Peak Tracking Total 11 | . 7 8 5 5 4 4 . 7 . 11 9 Tactical Retreats 10 | . 2 . 1 1 . . . . . 1 5 Traps | -11 -10 -9 -8 -7 -7 -7 -7 -6 -6 -6 -5 ------- Run | Yrd Mat Mat Mat Fac Low Low Dat Pro Fac DSF Fac Traps Triggered 6 | . . . 1 . . . . . . . 5 Indirectly . | . . . . . . . . . . . . Trap Hack Attempts . | . . . . . . . . . . . . Triggered . | . . . . . . . . . . . . Disarmed . | . . . . . . . . . . . . Reprogrammed . | . . . . . . . . . . . . Reused . | . . . . . . . . . . . . Traps Extracted . | . . . . . . . . . . . . Installed . | . . . . . . . . . . . . Triggered . | . . . . . . . . . . . . Machines | -11 -10 -9 -8 -7 -7 -7 -7 -6 -6 -6 -5 ---------- Run | Yrd Mat Mat Mat Fac Low Low Dat Pro Fac DSF Fac Machines Disabled 3 | . 1 . . 1 . . . 1 . . . Max in Single Turn 1 | . 1 . . 1 . . . 1 . . . Machines Repaired . | . . . . . . . . . . . . Machines Dismantled . | . . . . . . . . . . . . Machines Sabotaged . | . . . . . . . . . . . . Overloaded Fab Kills . | . . . . . . . . . . . . Hacking | -11 -10 -9 -8 -7 -7 -7 -7 -6 -6 -6 -5 --------- Run | Yrd Mat Mat Mat Fac Low Low Dat Pro Fac DSF Fac Machines Accessed 22 | . 1 3 4 3 1 2 4 . 2 . 2 Terminals 15 | . 1 3 4 2 1 1 . . 2 . 1 Fabricators . | . . . . . . . . . . . . Repair Stations 1 | . . . . 1 . . . . . . . Recycling Units . | . . . . . . . . . . . . Scanalyzers . | . . . . . . . . . . . . Garrison Access 1 | . . . . . . . . . . . 1 Total Hacks 73 | . 2 9 8 11 2 6 29 . 2 . 4 Successful 49 | . . 2 2 6 2 6 29 . 1 . 1 Failed 24 | . 2 7 6 5 . . . . 1 . 3 Catastrophic 9 | . . 3 3 . . . . . 1 . 2 Database Lockouts . | . . . . . . . . . . . . Manual 23 | . 2 9 8 3 . . . . 1 . . Terminals 33 | . 2 9 8 4 2 5 . . 2 . 1 Fabricators . | . . . . . . . . . . . . Repair Stations 7 | . . . . 7 . . . . . . . Recycling Units . | . . . . . . . . . . . . Scanalyzers . | . . . . . . . . . . . . Garrison Access 3 | . . . . . . . . . . . 3 Terminal Hacks 44 | . . 2 2 1 2 6 29 . 1 . 1 Record 18 | . . . . . 2 5 11 . . . . Part Schematic 11 | . . . . . . . 11 . . . . Robot Schematic 4 | . . . . . . . 4 . . . . Prototype ID Bank 3 | . . . . . . . 3 . . . . Open Door 1 | . . . . . . 1 . . . . . Open DSF 3 | . . . . 1 . . . . 1 . 1 Unreport Threat 3 | . . 1 2 . . . . . . . . Recall Reinforcements 1 | . . 1 . . . . . . . . . Fabricator Hacks . | . . . . . . . . . . . . Repair Station Hacks 5 | . . . . 5 . . . . . . . Scan Component 3 | . . . . 3 . . . . . . . Repair 2 | . . . . 2 . . . . . . . Recycling Unit Hacks . | . . . . . . . . . . . . Scanalyzer . | . . . . . . . . . . . . Garrison Access Hacks . | . . . . . . . . . . . . Unauthorized Hacks . | . . . . . . . . . . . . Terminals . | . . . . . . . . . . . . Fabricators . | . . . . . . . . . . . . Repair Stations . | . . . . . . . . . . . . Recycling Units . | . . . . . . . . . . . . Scanalyzers . | . . . . . . . . . . . . Garrison Access . | . . . . . . . . . . . . Data Cores Recovered . | . . . . . . . . . . . . Used . | . . . . . . . . . . . . Hacking Detections 13 | . 1 3 3 3 . . . . 1 . 2 Full Trace Events 5 | . . 3 . 1 . . . . . . 1 Feedback Events . | . . . . . . . . . . . . Feedback Blocked . | . . . . . . . . . . . . Robot Schematics Acquired 4 | . . . . . . . 4 . . . . Robots Built . | . . . . . . . . . . . . Authchips . | . . . . . . . . . . . . Time . | . . . . . . . . . . . . Total Robot Build Rating . | . . . . . . . . . . . . Part Schematics Acquired 11 | . . . . . . . 11 . . . . Parts Built . | . . . . . . . . . . . . Authchips . | . . . . . . . . . . . . Time . | . . . . . . . . . . . . Total Part Build Rating . | . . . . . . . . . . . . Parts Repaired 2 | . . . . 2 . . . . . . . Time 108 | . . . . 108 . . . . . . . Parts Recycled . | . . . . . . . . . . . . Recycled Matter . | . . . . . . . . . . . . Retrieved Matter . | . . . . . . . . . . . . Retrieved Components . | . . . . . . . . . . . . Parts Scanalyzed . | . . . . . . . . . . . . Part Schematics Acquired . | . . . . . . . . . . . . Parts Damaged . | . . . . . . . . . . . . Bothacking | -11 -10 -9 -8 -7 -7 -7 -7 -6 -6 -6 -5 ------------ Run | Yrd Mat Mat Mat Fac Low Low Dat Pro Fac DSF Fac Used RIF Installer . | . . . . . . . . . . . . Robots Hacked . | . . . . . . . . . . . . Non-combat . | . . . . . . . . . . . . Combat . | . . . . . . . . . . . . Robot Hacks Applied . | . . . . . . . . . . . . Relay Couplers Released . | . . . . . . . . . . . . Fabnet Peak Effective % . | . . . . . . . . . . . . Robots Rewired 2 | . . . . . . . . 2 . . . Allies Hacked . | . . . . . . . . . . . . Hacks Repelled . | . . . . . . . . . . . . Allies | -11 -10 -9 -8 -7 -7 -7 -7 -6 -6 -6 -5 -------- Run | Yrd Mat Mat Mat Fac Low Low Dat Pro Fac DSF Fac Total Allies 3 | . . . . . . . . 3 . . . Largest Group 3 | . . . . . . . . 3 1 1 . Highest-Rated Group 124 | . . . . . . . . 124 72 72 . Highest-Rated Ally 96 | . . . . . . . . 96 72 72 . Total Orders . | . . . . . . . . . . . . Ally Attacks 18 | . . . . . . . . 18 . . . Total Damage 515 | . . . . . . . . 515 . . . Kills 6 | . . . . . . . . 6 . . . Allies Corrupted . | . . . . . . . . . . . . Allies Melted . | . . . . . . . . . . . . Intel | -11 -10 -9 -8 -7 -7 -7 -7 -6 -6 -6 -5 ------- Run | Yrd Mat Mat Mat Fac Low Low Dat Pro Fac DSF Fac Robot Analysis Total . | . . . . . . . . . . . . Derelict Logs Recovered 6 | . . . . . 2 2 . 2 . . . Drone Launches . | . . . . . . . . . . . . Drone Recoveries . | . . . . . . . . . . . . Exploration | -11 -10 -9 -8 -7 -7 -7 -7 -6 -6 -6 -5 ------------- Run | Yrd Mat Mat Mat Fac Low Low Dat Pro Fac DSF Fac Turns Passed 10142 | 215 470 999 1486 2143 628 1904 124 1033 78 206 856 Spaces Moved 5189 | 158 304 431 751 884 378 1108 81 488 50 61 495 Core 444 | 3 . . . . . . . . . 30 411 Treads 3415 | . . . 397 884 378 1108 81 488 50 29 . Legs 827 | 155 108 418 144 . . . . . . 2 . Wheels 292 | . 196 13 83 . . . . . . . . Hover 211 | . . . 127 . . . . . . . 84 Flight . | . . . . . . . . . . . . Fastest Speed 40 | 50 80 93 48 161 149 149 151 151 155 50 40 Average Speed 140 | 118 110 160 142 161 152 150 151 159 155 166 48 Slowest Speed 850 | 120 260 400 330 161 153 153 151 410 155 850 50 Overloaded Moves . | . . . . . . . . . . . . Propulsion Burnouts . | . . . . . . . . . . . . Robots Hopped . | . . . . . . . . . . . . Cave-ins Triggered . | . . . . . . . . . . . . Exploration Rate (%) 46 | 6 49 32 54 20 68 96 69 68 1 81 14 Regions Visited 11 Branch Regions 4 Pre-discovered Areas 1 | . . . . . . . 1 . . . . Known Exits Taken 3 | . . . . . 1 1 . . 1 . . Unknown Exits Taken 7 | 1 1 1 1 1 . . 1 1 . . . Scrap Searched 6 | . . . . . . 2 . 4 . . . Spaces Dug . | . . . . . . . . . . . . Terrain Destroyed 6 | . . 4 1 . . . . 1 . . . Melee . | . . . . . . . . . . . . Projectile 2 | . . . 1 . . . . 1 . . . AOE 4 | . . 4 . . . . . . . . . Terrain Rammed 4 | . . . . . . . . . . . 4 Walls Destroyed . | . . . . . . . . . . . . Machines Disabled . | . . . . . . . . . . . . Actions | -11 -10 -9 -8 -7 -7 -7 -7 -6 -6 -6 -5 --------- Run | Yrd Mat Mat Mat Fac Low Low Dat Pro Fac DSF Fac Total 7411 | 175 379 618 1033 1524 405 1281 82 647 50 110 1107 Wait 1380 | 1 18 35 47 536 2 92 . 53 . . 596 Move 5178 | 157 303 430 750 883 377 1107 80 487 49 60 495 Hop . | . . . . . . . . . . . . Pick Up 90 | 6 5 24 30 10 1 6 . 6 . . 2 Fast Attach 74 | 7 3 11 28 6 . 3 . 7 1 6 2 Attach 30 | . 1 5 7 2 3 3 . 2 . 7 . Detach 13 | . 3 6 3 1 . . . . . . . Swap 58 | . 9 19 13 3 3 6 2 3 . . . Drop 105 | . 6 20 55 9 . 5 . 6 . 4 . Fire 350 | 4 31 67 88 41 10 21 . 59 . 29 . Melee 26 | . . . . . . 23 . . . 1 2 Ram 12 | . . . . . . . . . . 2 10 Kick 1 | . . 1 . . . . . . . . . Crush 69 | . . . 12 33 9 11 . 3 . 1 . Escape Stasis . | . . . . . . . . . . . . Rewire 25 | . . . . . . 4 . 21 . . . Trap . | . . . . . . . . . . . . Miscellaneous . | . . . . . . . . . . . . Route ------- -11/Scrapyard -10/Materials (discovered 2 exits: *Mat x2) -9/Materials -8/Materials (discovered 2 exits: *Fac / [*Sto]) -7/Factory -7/Lower Caves -7/Lower Caves (discovered 2 exits: *Fac / *Dat) -7/Data Miner -6/Proximity Caves -6/Factory (discovered 3 exits: Low x2 / DSF) -6/DSF -5/Factory (discovered 2 exits: Upp x2) History --------- Turn | Location | Event 4 | -11/Scrapyard | Discovered new exit (range 16) 216 | -11/Scrapyard | Entered Materials 300 | -10/Materials | Build established: Mutant 427 | -10/Materials | Discovered new exit (range 9) 652 | -10/Materials | Discovered new exit (range 12) 686 | -10/Materials | Entered another Materials area 686 | -9/Materials | Evolved 2 slots: Propulsion x2 1176 | -9/Materials | Build established: Scavenger-Mutant 1422 | -9/Materials | Core integrity fell below 50% 1539 | -9/Materials | Discovered new exit (range 3) 1685 | -9/Materials | Entered another Materials area 1685 | -8/Materials | Evolved 2 slots: Utility x2 1803 | -8/Materials | Lost 3 parts (3n) 2184 | -8/Materials | Build established: Mutant 2255 | -8/Materials | Discovered new exit (range 10) 2914 | -8/Materials | Found Powered Armor 3091 | -8/Materials | Discovered new exit (range 11) 3171 | -8/Materials | Entered Factory 3171 | -7/Factory | Evolved 2 slots: Propulsion x2 4338 | -7/Factory | Repaired Arm. Treads 4410 | -7/Factory | Repaired Broken Lgt. Angular Momentum Engine 4898 | -7/Factory | Garrison activated, responded to threat 5298 | -7/Factory | Discovered new exit (range 10) 5314 | -7/Factory | Entered Lower Caves 5380 | -7/Lower Caves | Identified exit to Lower Caves 5773 | -7/Lower Caves | Encountered a Warlord checkpoint 5819 | -7/Lower Caves | Learned Factory terminal intel 5942 | -7/Lower Caves | Entered another Lower Caves area 6438 | -7/Lower Caves | System corruption reached 10% 6584 | -7/Lower Caves | Discovered new exit (range 5) 6754 | -7/Lower Caves | Attracted the attention of an 0b10 base 6798 | -7/Lower Caves | Destroyed 7 combat bots 6849 | -7/Lower Caves | Identified exit to Data Miner 6849 | -7/Lower Caves | Learned location of 1 exit from Lower Caves 6849 | -7/Lower Caves | Learned location of 2 exits from Upper Caves 7371 | -7/Lower Caves | Attracted the attention of an 0b10 checkpoint 7846 | -7/Lower Caves | Entered Data Miner 7846 | -7/Data Miner | Discovered new exit (range 6) 7875 | -7/Data Miner | Met Data Miner 7902 | -7/Data Miner | Learned location of Section 7 (-3) 7902 | -7/Data Miner | Acquired the access code to Warlord's prototype stash 7934 | -7/Data Miner | Received God Mode back door access code from Data Miner 7970 | -7/Data Miner | Entered Proximity Caves 7973 | -6/Proximity Caves | Spotter reported a threat 8118 | -6/Proximity Caves | Spotter reported a threat 8165 | -6/Proximity Caves | Spotter reported a threat 8175 | -6/Proximity Caves | Spotter reported a threat 8287 | -6/Proximity Caves | Spotter reported a threat 8323 | -6/Proximity Caves | Attracted the attention of an 0b10 outpost 8364 | -6/Proximity Caves | Escorted by Enhanced Grunt 8574 | -6/Proximity Caves | Spotter reported a threat 8944 | -6/Proximity Caves | Discovered new exit (range 7) 8947 | -6/Proximity Caves | Learned location of 1 exit from Lower Caves 9003 | -6/Proximity Caves | Entered Factory 9003 | -6/Factory | Accompanied by 1 ally 9003 | -6/Factory | Evolved 2 slots: Propulsion x1, Utility x1 9004 | -6/Factory | Identified exit to Lower Caves 9005 | -6/Factory | Loaded intel: 26 terminal locations 9081 | -6/Factory | Identified exit to DSF 9081 | -6/Factory | Entered DSF 9081 | -6/DSF | Accompanied by 1 ally 9116 | -6/DSF | Additional patrols routed to DSF 9192 | -6/DSF | Lost 5 parts (3n1u1w) 9257 | -6/DSF | Core integrity fell below 50% 9269 | -6/DSF | Lost 6 parts (1p1u4w) 9277 | -6/DSF | Core integrity fell below 20% 9277 | -6/DSF | Discovered new exit (range 11) 9287 | -6/DSF | Entered Factory 9287 | -5/Factory | Evolved 2 slots: Power x1, Utility x1 9288 | -5/Factory | Identified exit to Upper Caves 9316 | -5/Factory | Lost 3 parts (2u1w) 10025 | -5/Factory | Core integrity fell below 50% 10037 | -5/Factory | Spotted B-75 Beast 10047 | -5/Factory | Incoming investigation squad redirected 10113 | -5/Factory | Core integrity fell below 20% 10143 | -5/Factory | Core destroyed Last Messages --------------- Investigation squad. 10039_ Recycling Unit disabled. 10039_ Centrium Wheel tumbles out of recycling unit. 10047_ ALERT: Higher priority target reported, redirecting investigation. 10047_ Triggered Segregator Trap. 10047_ Arcs of energy rise from the floor. 10061_ Slammed into K-01 Serf. 10072_ Acquired Scythe. 10105_ Sneak attack on L-41 Fighter. 10110_ Scythe severed. 10110_ Slammed into L-41 Fighter. 10113_ Critical hit (Burn: +37). 10116_ Acquired Katana. 10121_ ALERT: Rogue bot located, Programmers report to Factory Zone 8S. 10130_ Penetrated by Slug. 10133_ System corrupted: Matter fused (-5). 10135_ Acquired Lrn. Missile Launcher. 10140_ Penetrated by Slug. 10141_ Slammed into Y-64 Sentinel. 10143_ Destabilizing: Core damaged (-40). Map ----- +----------------------------------------------------+ | | | | | | | | | | | | | | | | | | | | | | | | | | | | | | | | | ??????????????####################### | | ?????????######! # | | ?????????# # # """ """" | | ?????????# # # """ ""Y" | | ?????????# # # """ | | ????###### # # | | ????# + #+#####+##########+#### | | ????# ###### ##?# | | ????# ##### ### g | | ????# @Y | | ????########## ############### | | ?????????????# ###?????????????# | | ?????????????# #???????????????# | | ?????????????# #???????????????# | | ?????????????# #???????????????# | | ????????????? ???????????????# | | ????????????? ???????????????# | | ????????????? ???????????????# | | ????????????? ???????????????# | | ????????????? ???????????????# T | | ????????????## ???????????????# | | ?????????????? ???????????????#= | | ?????????????? ???????????????# | | ?????????????? ???????????????# ? | | ????????????????????????????????????? | | ????????????????????????????????????? | | ????????????????????????????????????? | | ????????????????????????????????????? | | ????????????????????????????????????? | | ????????????????????????????????????? | | ????????????????????????????????????? | | ????????????????????????????????????? | | ????????????????????????????????????? | | ????????????????????????????????????? | +----------------------------------------------------+ Best States ------------- Heat Dissipation 45 Energy Generation 21 Energy Capacity 325 Matter Stores 300 Matter Capacity 300 Sight Range 16 Terrain Scan Density 10 Armor Coverage 400 Resistance: KI 30 Propulsion Shielding 66 Utility Shielding 66 Evasion (%) 57 Targeting Accuracy 8 Core Analysis 9 Recoil Reduction 6 Offensive Hacking 10 Defensive Hacking 11 Authchip Count 1 Item Schematics ----------------- Combat Drone Bay | -7/Data Miner | Free Lgt. Regenerative Plating | -7/Data Miner | Free Cld. Cesium-ion Thruster | -7/Data Miner | Free Gravity Neutralizer | -7/Data Miner | Free Force Rifle | -7/Data Miner | Free Hvy. Treads | -7/Data Miner | Free Imp. Focal Shield | -7/Data Miner | Free Hvy. Phase Cannon | -7/Data Miner | Free Lgt. Angular Momentum Engine | -7/Data Miner | Free Mass Driver | -7/Data Miner | Free Dispersion Rifle | -7/Data Miner | Free Robot Schematics ------------------ L-41 Fighter | -7/Data Miner | Free A-15 Conveyor | -7/Data Miner | Free O-24 Administrator | -7/Data Miner | Free H-55 Commando | -7/Data Miner | Free Fabricated ------------ Nothing Alien Tech Used ----------------- None Achievements -------------- None Challenges ------------ None Game ------ Seed GrapheneSubdwellerPendant Manual? 0 Play Time 01:00:17 Cumulative 132.3 hours Start 2024.04.27 @ 12:18:28 End 2024.04.27 @ 13:35:44 Sessions 1 Manual Loads 0 Difficulty Rogue Special Mode None Game No. 269 Rogue 269 Adventurer 0 Explorer 0 Win Type - Total 0 Types 0/0/0/0/0/0/0/0/0 Lore% 35 Gallery% 55 Achievement% 37 Wizard Run 0 Options --------- Layout 0 ASCII 0 Keyboard 1 Movement Numpad Keybinds 0 Fullscreen 2 Font 18/X11 Map View 76x50 Zoom Use 0% Tactical HUD 1 Map Filters NONE Filters NONE Steam 1 RUN: 3239341f-79b0-46d6-8a94-55bd6f1954be